[Event "Late-Titled-Tuesday-Blitz-March-26-2024"]
[Site "Chess.com"]
[Date "2024.03.26"]
[Round "1"]
[White "AsaHoffmann"]
[Black "Adar_07"]
[Result "0-1"]
[WhiteElo "2418"]
[BlackElo "2772"]
[TimeControl "180+1"]
[EndTime "14:06:27 PDT"]
[Termination "Adar_07 won by checkmate"]

1. d4 {[%clk 0:02:58]} 1... Nf6 {[%clk 0:02:58.5]} 2. Bg5 {[%clk 0:02:54.8]}
2... Ne4 {[%clk 0:02:58.7]} 3. Bf4 {[%clk 0:02:54.5]} 3... c5 {[%clk 0:02:58.7]}
4. f3 {[%clk 0:02:54.4]} 4... Nf6 {[%clk 0:02:59.1]} 5. dxc5 {[%clk 0:02:54.1]}
5... Nc6 {[%clk 0:02:56.6]} 6. Nc3 {[%clk 0:02:48]} 6... e5 {[%clk 0:02:50.7]}
7. Be3 {[%clk 0:02:44.3]} 7... Qa5 {[%clk 0:02:50.6]} 8. Qd2 {[%clk 0:02:16.9]}
8... Bxc5 {[%clk 0:02:49.5]} 9. Bxc5 {[%clk 0:02:16.5]} 9... Qxc5 {[%clk
0:02:50.4]} 10. e4 {[%clk 0:02:16.5]} 10... d6 {[%clk 0:02:46.9]} 11. O-O-O
{[%clk 0:02:15.5]} 11... Ke7 {[%clk 0:02:21.2]} 12. Qg5 {[%clk 0:02:14.9]} 12...
Be6 {[%clk 0:02:16.8]} 13. Nge2 {[%clk 0:02:07.5]} 13... h6 {[%clk 0:02:06.7]}
14. Qd2 {[%clk 0:02:04.6]} 14... Rac8 {[%clk 0:02:01.1]} 15. a3 {[%clk 0:02:00]}
15... Rhd8 {[%clk 0:01:58.9]} 16. Kb1 {[%clk 0:01:58.6]} 16... d5 {[%clk
0:01:57.6]} 17. exd5 {[%clk 0:01:54.8]} 17... Nxd5 {[%clk 0:01:58.5]} 18. Ne4
{[%clk 0:01:53.7]} 18... Qb6 {[%clk 0:01:39.7]} 19. Qc1 {[%clk 0:01:50.6]} 19...
f5 {[%clk 0:01:29.5]} 20. N4c3 {[%clk 0:01:47.4]} 20... Ne3 {[%clk 0:01:23.9]}
21. Re1 {[%clk 0:01:37.8]} 21... f4 {[%clk 0:01:11.8]} 22. g3 {[%clk 0:01:34.8]}
22... g5 {[%clk 0:00:58.9]} 23. h4 {[%clk 0:01:34.5]} 23... Bf5 {[%clk
0:00:54.1]} 24. hxg5 {[%clk 0:01:24.6]} 24... Nxc2 {[%clk 0:00:49.3]} 25. Qxc2
{[%clk 0:01:24.4]} 25... Bxc2+ {[%clk 0:00:49.1]} 26. Kxc2 {[%clk 0:01:24.4]}
26... Qf2 {[%clk 0:00:38.6]} 27. Bh3 {[%clk 0:01:19.2]} 27... Nd4+ {[%clk
0:00:37.3]} 28. Kb1 {[%clk 0:01:17.2]} 28... Nxf3 {[%clk 0:00:37.1]} 29. Rc1
{[%clk 0:01:01.9]} 29... Nd2+ {[%clk 0:00:15.9]} 30. Ka2 {[%clk 0:00:59.6]}
30... Rxc3 {[%clk 0:00:15.8]} 31. Nxc3 {[%clk 0:00:55.8]} 31... Nc4 {[%clk
0:00:16.4]} 32. Rb1 {[%clk 0:00:54.2]} 32... Rd2 {[%clk 0:00:16]} 33. Nd1 {[%clk
0:00:49.2]} 33... Qf3 {[%clk 0:00:16.4]} 34. Rf1 {[%clk 0:00:44.4]} 34... Qxa3#
{[%clk 0:00:16.3]} 0-1

[Event "Late-Titled-Tuesday-Blitz-March-26-2024"]
[Site "Chess.com"]
[Date "2024.03.26"]
[Round "1"]
[White "ViIIagra"]
[Black "nj123456"]
[Result "1-0"]
[WhiteElo "2876"]
[BlackElo "2465"]
[TimeControl "180+1"]
[EndTime "14:06:32 PDT"]
[Termination "ViIIagra won by resignation"]

1. d4 {[%clk 0:02:59.6]} 1... d5 {[%clk 0:02:59.9]} 2. Nd2 {[%clk 0:02:59.1]}
2... Nf6 {[%clk 0:02:59.1]} 3. e3 {[%clk 0:02:58]} 3... e6 {[%clk 0:02:59.2]} 4.
Bd3 {[%clk 0:02:56.1]} 4... c5 {[%clk 0:02:59]} 5. c3 {[%clk 0:02:52.1]} 5...
Nc6 {[%clk 0:02:58.9]} 6. f4 {[%clk 0:02:52.4]} 6... Bd6 {[%clk 0:02:56.9]} 7.
Ngf3 {[%clk 0:02:52.8]} 7... O-O {[%clk 0:02:57]} 8. Ne5 {[%clk 0:02:53.1]} 8...
Ne7 {[%clk 0:02:43.2]} 9. O-O {[%clk 0:02:50.7]} 9... b6 {[%clk 0:02:42.1]} 10.
Qf3 {[%clk 0:02:30.3]} 10... Bb7 {[%clk 0:02:41]} 11. g4 {[%clk 0:02:30.1]}
11... Rc8 {[%clk 0:02:18.2]} 12. g5 {[%clk 0:02:28.5]} 12... Ne8 {[%clk
0:01:46.6]} 13. Qh5 {[%clk 0:02:07.1]} 13... Nf5 {[%clk 0:01:41]} 14. Rf3 {[%clk
0:02:03.9]} 14... g6 {[%clk 0:01:25.8]} 15. Qg4 {[%clk 0:02:00.5]} 15... Neg7
{[%clk 0:01:19.9]} 16. Qh3 {[%clk 0:01:51.5]} 16... Bxe5 {[%clk 0:01:08.8]} 17.
dxe5 {[%clk 0:01:21.4]} 17... c4 {[%clk 0:00:50.6]} 18. Bb1 {[%clk 0:00:53.5]}
18... d4 {[%clk 0:00:50.1]} 19. e4 {[%clk 0:00:48.3]} 19... Ne7 {[%clk
0:00:49.3]} 20. Bc2 {[%clk 0:00:39]} 20... d3 {[%clk 0:00:49.4]} 21. Bd1 {[%clk
0:00:38.1]} 21... Qc7 {[%clk 0:00:45.2]} 22. Qh6 {[%clk 0:00:30.2]} 22... Qc5+
{[%clk 0:00:35.1]} 23. Kf1 {[%clk 0:00:30.3]} 23... Nef5 {[%clk 0:00:27]} 24.
exf5 {[%clk 0:00:29.1]} 24... Nxf5 {[%clk 0:00:27.9]} 25. Qh3 {[%clk 0:00:29.1]}
25... Bxf3 {[%clk 0:00:27.5]} 26. Qxf3 {[%clk 0:00:27.8]} 26... b5 {[%clk
0:00:22.6]} 27. Ne4 {[%clk 0:00:28.1]} 27... Qb6 {[%clk 0:00:22.4]} 28. Bd2
{[%clk 0:00:26.3]} 28... a5 {[%clk 0:00:22]} 29. Qh3 {[%clk 0:00:25.9]} 29... b4
{[%clk 0:00:20]} 30. Nf6+ {[%clk 0:00:25.5]} 1-0

[Event "Late-Titled-Tuesday-Blitz-March-26-2024"]
[Site "Chess.com"]
[Date "2024.03.26"]
[Round "1"]
[White "TigrVShlyape"]
[Black "EternalNight8"]
[Result "1-0"]
[WhiteElo "2896"]
[BlackElo "2475"]
[TimeControl "180+1"]
[EndTime "14:06:33 PDT"]
[Termination "TigrVShlyape won by checkmate"]

1. e4 {[%clk 0:02:58.7]} 1... c5 {[%clk 0:02:59.2]} 2. Nf3 {[%clk 0:02:57.9]}
2... d6 {[%clk 0:02:59.1]} 3. d4 {[%clk 0:02:57.4]} 3... cxd4 {[%clk 0:02:59.6]}
4. Nxd4 {[%clk 0:02:57.5]} 4... Nf6 {[%clk 0:02:59.5]} 5. Nc3 {[%clk 0:02:53.3]}
5... Nc6 {[%clk 0:02:59.3]} 6. Bg5 {[%clk 0:02:51.8]} 6... Bd7 {[%clk
0:02:59.3]} 7. Qd2 {[%clk 0:02:47.7]} 7... Rc8 {[%clk 0:02:58.9]} 8. Nxc6 {[%clk
0:02:38.5]} 8... Bxc6 {[%clk 0:02:54.9]} 9. Bd3 {[%clk 0:02:31.7]} 9... h6
{[%clk 0:02:38.7]} 10. Bh4 {[%clk 0:02:02.8]} 10... e6 {[%clk 0:01:58.8]} 11.
Qe2 {[%clk 0:01:19.8]} 11... Be7 {[%clk 0:01:52.8]} 12. Bg3 {[%clk 0:01:19.4]}
12... Qb6 {[%clk 0:01:41.9]} 13. Rb1 {[%clk 0:01:18]} 13... O-O {[%clk
0:01:38.7]} 14. O-O {[%clk 0:01:17.3]} 14... Rfd8 {[%clk 0:01:25.9]} 15. Kh1
{[%clk 0:01:15.8]} 15... Nd7 {[%clk 0:01:10.9]} 16. f4 {[%clk 0:01:14.3]} 16...
Nc5 {[%clk 0:01:09.5]} 17. f5 {[%clk 0:01:04.7]} 17... Nxd3 {[%clk 0:01:03.6]}
18. cxd3 {[%clk 0:01:04.3]} 18... e5 {[%clk 0:00:50.3]} 19. f6 {[%clk
0:00:57.3]} 19... Bxf6 {[%clk 0:00:47.9]} 20. Rxf6 {[%clk 0:00:56]} 20... gxf6
{[%clk 0:00:47.5]} 21. Bh4 {[%clk 0:00:52.5]} 21... d5 {[%clk 0:00:27.7]} 22.
Bxf6 {[%clk 0:00:33.8]} 22... Kh7 {[%clk 0:00:28]} 23. Qg4 {[%clk 0:00:20.5]}
23... Rg8 {[%clk 0:00:26.4]} 24. Qf5+ {[%clk 0:00:19.8]} 24... Rg6 {[%clk
0:00:26.2]} 25. Qxc8 {[%clk 0:00:19.6]} 25... Qf2 {[%clk 0:00:13.7]} 26. Qh8#
{[%clk 0:00:18.1]} 1-0

[Event "Late-Titled-Tuesday-Blitz-March-26-2024"]
[Site "Chess.com"]
[Date "2024.03.26"]
[Round "1"]
[White "LeoWin2012"]
[Black "NMJeevanK"]
[Result "0-1"]
[WhiteElo "2283"]
[BlackElo "2615"]
[TimeControl "180+1"]
[EndTime "14:06:36 PDT"]
[Termination "NMJeevanK won by checkmate"]

1. e4 {[%clk 0:02:57.4]} 1... e5 {[%clk 0:02:59.2]} 2. Nf3 {[%clk 0:02:56.4]}
2... d6 {[%clk 0:02:59.2]} 3. Bc4 {[%clk 0:02:54.9]} 3... Be7 {[%clk 0:02:57.7]}
4. d4 {[%clk 0:02:54.6]} 4... exd4 {[%clk 0:02:57.6]} 5. Nxd4 {[%clk 0:02:54.9]}
5... Nf6 {[%clk 0:02:57.8]} 6. Nc3 {[%clk 0:02:54.5]} 6... O-O {[%clk
0:02:58.3]} 7. f3 {[%clk 0:02:54.6]} 7... c6 {[%clk 0:02:56.7]} 8. Be3 {[%clk
0:02:54.3]} 8... b5 {[%clk 0:02:53.2]} 9. Bb3 {[%clk 0:02:53.3]} 9... b4 {[%clk
0:02:53.3]} 10. Nce2 {[%clk 0:02:52.9]} 10... c5 {[%clk 0:02:52.6]} 11. Nf5
{[%clk 0:02:52.6]} 11... Bxf5 {[%clk 0:02:52.1]} 12. exf5 {[%clk 0:02:52.5]}
12... d5 {[%clk 0:02:49.8]} 13. Nf4 {[%clk 0:02:47.8]} 13... c4 {[%clk
0:02:38.2]} 14. Ba4 {[%clk 0:02:46.8]} 14... Bd6 {[%clk 0:02:26.2]} 15. O-O
{[%clk 0:02:31.7]} 15... Qa5 {[%clk 0:02:11.5]} 16. b3 {[%clk 0:02:31.1]} 16...
c3 {[%clk 0:01:56.6]} 17. g3 {[%clk 0:02:29.8]} 17... Na6 {[%clk 0:01:52.5]} 18.
Bc6 {[%clk 0:02:20.2]} 18... Rad8 {[%clk 0:01:49.5]} 19. Qd3 {[%clk 0:02:12.3]}
19... Nc5 {[%clk 0:01:36.7]} 20. Qb5 {[%clk 0:02:12]} 20... Qxb5 {[%clk
0:01:24.4]} 21. Bxb5 {[%clk 0:02:12.9]} 21... a6 {[%clk 0:01:17.8]} 22. Be2
{[%clk 0:02:10.8]} 22... Rfe8 {[%clk 0:01:17.1]} 23. Kf2 {[%clk 0:02:05.8]}
23... Bxf4 {[%clk 0:00:46.5]} 24. Bxc5 {[%clk 0:02:00.2]} 24... Bd2 {[%clk
0:00:42.1]} 25. Bxb4 {[%clk 0:01:46]} 25... d4 {[%clk 0:00:41.7]} 26. Rfd1
{[%clk 0:01:40.5]} 26... Nd5 {[%clk 0:00:40.5]} 27. Bc5 {[%clk 0:01:39.3]} 27...
Ne3 {[%clk 0:00:37.9]} 28. Rg1 {[%clk 0:01:29.4]} 28... Nxc2 {[%clk 0:00:37.7]}
29. Bxa6 {[%clk 0:01:26.4]} 29... Nxa1 {[%clk 0:00:34.3]} 30. Rxa1 {[%clk
0:01:26.2]} 30... c2 {[%clk 0:00:34.6]} 31. Ba3 {[%clk 0:01:26]} 31... Ra8
{[%clk 0:00:33.7]} 32. Bb5 {[%clk 0:01:22.3]} 32... Rxa3 {[%clk 0:00:30.9]} 33.
Bxe8 {[%clk 0:01:22.4]} 33... c1=Q {[%clk 0:00:31.4]} 34. Rxc1 {[%clk
0:01:22.9]} 34... Bxc1 {[%clk 0:00:32.3]} 35. b4 {[%clk 0:01:22.4]} 35... Be3+
{[%clk 0:00:31.7]} 36. Ke2 {[%clk 0:01:22.1]} 36... Rxa2+ {[%clk 0:00:31.9]} 37.
Kd3 {[%clk 0:01:22.8]} 37... Rxh2 {[%clk 0:00:31.2]} 38. b5 {[%clk 0:01:22.8]}
38... Rb2 {[%clk 0:00:31]} 39. Bc6 {[%clk 0:01:22.6]} 39... Kf8 {[%clk
0:00:31.2]} 40. g4 {[%clk 0:01:22.6]} 40... Ke7 {[%clk 0:00:31.5]} 41. Ke4
{[%clk 0:01:22.7]} 41... g6 {[%clk 0:00:31.1]} 42. fxg6 {[%clk 0:01:22.3]} 42...
hxg6 {[%clk 0:00:32]} 43. Kd3 {[%clk 0:01:22.3]} 43... Kd6 {[%clk 0:00:32.2]}
44. Ke4 {[%clk 0:01:22.4]} 44... f6 {[%clk 0:00:32.3]} 45. Kd3 {[%clk
0:01:22.9]} 45... Kc5 {[%clk 0:00:32.2]} 46. Be8 {[%clk 0:01:22.9]} 46... g5
{[%clk 0:00:32]} 47. Bc6 {[%clk 0:01:21.6]} 47... Rxb5 {[%clk 0:00:31.6]} 48.
Bxb5 {[%clk 0:01:22.5]} 48... Kxb5 {[%clk 0:00:32.5]} 49. Kc2 {[%clk 0:01:19.6]}
49... Kc4 {[%clk 0:00:32.8]} 50. f4 {[%clk 0:01:19.9]} 50... gxf4 {[%clk
0:00:32.6]} 51. Kd1 {[%clk 0:01:20.4]} 51... f3 {[%clk 0:00:32.3]} 52. g5 {[%clk
0:01:20.2]} 52... Kd3 {[%clk 0:00:28.7]} 53. Ke1 {[%clk 0:01:21.1]} 53... fxg5
{[%clk 0:00:28]} 54. Kd1 {[%clk 0:01:21.3]} 54... g4 {[%clk 0:00:28.3]} 55. Ke1
{[%clk 0:01:21.5]} 55... g3 {[%clk 0:00:28.5]} 56. Kf1 {[%clk 0:01:21]} 56...
g2+ {[%clk 0:00:28.7]} 57. Ke1 {[%clk 0:01:21.9]} 57... g1=Q# {[%clk 0:00:27]}
0-1

[Event "Late-Titled-Tuesday-Blitz-March-26-2024"]
[Site "Chess.com"]
[Date "2024.03.26"]
[Round "1"]
[White "Stanbad1"]
[Black "kai_nov"]
[Result "1-0"]
[WhiteElo "2656"]
[BlackElo "2345"]
[TimeControl "180+1"]
[EndTime "14:06:40 PDT"]
[Termination "Stanbad1 won on time"]

1. d4 {[%clk 0:03:00.9]} 1... d5 {[%clk 0:02:58.2]} 2. c4 {[%clk 0:03:01.3]}
2... e6 {[%clk 0:02:58.2]} 3. Nf3 {[%clk 0:03:01.6]} 3... c6 {[%clk 0:02:53.9]}
4. Nbd2 {[%clk 0:03:00.2]} 4... Nf6 {[%clk 0:02:52.6]} 5. g3 {[%clk 0:03:00]}
5... c5 {[%clk 0:02:53.5]} 6. cxd5 {[%clk 0:02:59.4]} 6... exd5 {[%clk
0:02:53.2]} 7. Bg2 {[%clk 0:02:59.2]} 7... Nc6 {[%clk 0:02:53.8]} 8. O-O {[%clk
0:02:59.2]} 8... Be7 {[%clk 0:02:46.3]} 9. dxc5 {[%clk 0:02:59]} 9... Bxc5
{[%clk 0:02:45.9]} 10. Nb3 {[%clk 0:02:59.3]} 10... Be7 {[%clk 0:02:44.3]} 11.
Nbd4 {[%clk 0:02:59.3]} 11... O-O {[%clk 0:02:43.4]} 12. b3 {[%clk 0:02:57.4]}
12... Bg4 {[%clk 0:02:33.2]} 13. Bb2 {[%clk 0:02:56.2]} 13... Rc8 {[%clk
0:02:31.6]} 14. Rc1 {[%clk 0:02:56.5]} 14... Ne4 {[%clk 0:02:23.8]} 15. a3
{[%clk 0:02:44.1]} 15... Bf6 {[%clk 0:02:21]} 16. Qd3 {[%clk 0:02:30.9]} 16...
Qb6 {[%clk 0:01:48.3]} 17. Nxc6 {[%clk 0:02:12]} 17... bxc6 {[%clk 0:01:47.2]}
18. Bxf6 {[%clk 0:02:10.7]} 18... Nxf6 {[%clk 0:01:48.1]} 19. b4 {[%clk
0:02:10.4]} 19... Rfe8 {[%clk 0:01:42.9]} 20. e3 {[%clk 0:02:07.4]} 20... Bh5
{[%clk 0:01:33.7]} 21. Qd4 {[%clk 0:02:05.2]} 21... Qa6 {[%clk 0:01:30.3]} 22.
Qb2 {[%clk 0:02:00.1]} 22... Ne4 {[%clk 0:01:21.6]} 23. Nd4 {[%clk 0:01:56.9]}
23... h6 {[%clk 0:01:11.2]} 24. Rc2 {[%clk 0:01:48.5]} 24... Bg6 {[%clk
0:01:00.6]} 25. Rfc1 {[%clk 0:01:38.6]} 25... Qd3 {[%clk 0:00:23.4]} 26. Rxc6
{[%clk 0:01:28.6]} 26... Rxc6 {[%clk 0:00:22.6]} 27. Nxc6 {[%clk 0:01:29.3]}
27... Nd6 {[%clk 0:00:14.7]} 28. Ne5 {[%clk 0:01:18.5]} 28... Qf5 {[%clk
0:00:10.7]} 29. Nxg6 {[%clk 0:01:18.2]} 29... fxg6 {[%clk 0:00:09.9]} 30. Qd4
{[%clk 0:01:15.4]} 30... Ne4 {[%clk 0:00:09.1]} 31. Qb2 {[%clk 0:01:07.1]} 31...
Kh7 {[%clk 0:00:06.8]} 32. a4 {[%clk 0:01:01.6]} 32... Ng5 {[%clk 0:00:05.8]}
33. Qc2 {[%clk 0:00:53.9]} 33... Nf3+ {[%clk 0:00:04.5]} 34. Bxf3 {[%clk
0:00:53.7]} 34... Qxf3 {[%clk 0:00:04.5]} 35. Qd1 {[%clk 0:00:51.2]} 35... Qe4
{[%clk 0:00:02.1]} 36. Qd4 {[%clk 0:00:50.4]} 1-0

[Event "Late-Titled-Tuesday-Blitz-March-26-2024"]
[Site "Chess.com"]
[Date "2024.03.26"]
[Round "1"]
[White "Revan_2002"]
[Black "simaopdias"]
[Result "1-0"]
[WhiteElo "2627"]
[BlackElo "2301"]
[TimeControl "180+1"]
[EndTime "14:06:40 PDT"]
[Termination "Revan_2002 won by resignation"]

1. d4 {[%clk 0:02:58.2]} 1... Nf6 {[%clk 0:02:58.2]} 2. c4 {[%clk 0:02:51.8]}
2... e5 {[%clk 0:02:56.4]} 3. dxe5 {[%clk 0:02:50]} 3... Ng4 {[%clk 0:02:54.9]}
4. e3 {[%clk 0:02:50.2]} 4... Nxe5 {[%clk 0:02:53.4]} 5. Nc3 {[%clk 0:02:49.6]}
5... Bb4 {[%clk 0:02:51.2]} 6. Bd2 {[%clk 0:02:48.9]} 6... d6 {[%clk 0:02:49.2]}
7. a3 {[%clk 0:02:48.4]} 7... Bxc3 {[%clk 0:02:42.9]} 8. Bxc3 {[%clk 0:02:49.3]}
8... O-O {[%clk 0:02:43.5]} 9. Be2 {[%clk 0:02:40]} 9... Nbc6 {[%clk 0:02:39.8]}
10. Nf3 {[%clk 0:02:38.3]} 10... Be6 {[%clk 0:02:34.5]} 11. b3 {[%clk
0:02:32.9]} 11... Qe7 {[%clk 0:02:29.8]} 12. O-O {[%clk 0:02:32.3]} 12... Rad8
{[%clk 0:02:26.6]} 13. Qc2 {[%clk 0:02:30.7]} 13... Rfe8 {[%clk 0:02:24.8]} 14.
Rad1 {[%clk 0:02:30]} 14... f6 {[%clk 0:02:23.9]} 15. Nd2 {[%clk 0:02:24.8]}
15... Bf7 {[%clk 0:02:21.6]} 16. h3 {[%clk 0:02:23.9]} 16... Bg6 {[%clk
0:02:21.6]} 17. e4 {[%clk 0:02:23.8]} 17... Bf7 {[%clk 0:02:20.5]} 18. f4 {[%clk
0:02:23.4]} 18... Ng6 {[%clk 0:02:19.5]} 19. Rde1 {[%clk 0:02:20.6]} 19... Qd7
{[%clk 0:02:15.5]} 20. Bg4 {[%clk 0:02:19.9]} 20... Qe7 {[%clk 0:02:12.7]} 21.
b4 {[%clk 0:02:04.6]} 21... a6 {[%clk 0:02:11.3]} 22. Qd3 {[%clk 0:02:02.2]}
22... Qf8 {[%clk 0:02:10.9]} 23. Kh2 {[%clk 0:02:00.3]} 23... Nge7 {[%clk
0:02:08]} 24. Qg3 {[%clk 0:01:59]} 24... Kh8 {[%clk 0:02:07.6]} 25. b5 {[%clk
0:01:50.7]} 25... Nb8 {[%clk 0:02:06.6]} 26. a4 {[%clk 0:01:50.6]} 26... Bg6
{[%clk 0:02:02.4]} 27. e5 {[%clk 0:01:47.4]} 27... f5 {[%clk 0:01:39.6]} 28. Bf3
{[%clk 0:01:43.8]} 28... c6 {[%clk 0:01:37.1]} 29. bxa6 {[%clk 0:01:34.3]} 29...
Nxa6 {[%clk 0:01:34.5]} 30. Ba5 {[%clk 0:01:34]} 30... dxe5 {[%clk 0:01:23.4]}
31. Bxd8 {[%clk 0:01:33.1]} 31... exf4 {[%clk 0:01:23]} 32. Qxf4 {[%clk
0:01:32.7]} 32... Rxd8 {[%clk 0:01:22.6]} 33. Nb3 {[%clk 0:01:18]} 33... Ng8
{[%clk 0:01:20.2]} 34. Nd4 {[%clk 0:01:17.2]} 34... Nc5 {[%clk 0:01:07.8]} 35.
Ne6 {[%clk 0:01:17.2]} 35... Nxe6 {[%clk 0:01:07.8]} 36. Rxe6 {[%clk 0:01:18.1]}
36... Nf6 {[%clk 0:01:05.5]} 37. Rd1 {[%clk 0:01:18]} 37... Rxd1 {[%clk
0:01:01.9]} 38. Bxd1 {[%clk 0:01:18.9]} 38... h6 {[%clk 0:00:59.2]} 39. Qd6
{[%clk 0:01:18.1]} 39... Qa8 {[%clk 0:00:57.1]} 40. Bc2 {[%clk 0:01:02.1]} 40...
Kh7 {[%clk 0:00:51.1]} 41. Re7 {[%clk 0:00:58.3]} 41... Qf8 {[%clk 0:00:42.7]}
42. c5 {[%clk 0:00:51.9]} 42... Ne4 {[%clk 0:00:39.7]} 43. Rxe4 {[%clk
0:00:49.5]} 43... fxe4 {[%clk 0:00:40.6]} 44. Qxf8 {[%clk 0:00:48.9]} 1-0

[Event "Late-Titled-Tuesday-Blitz-March-26-2024"]
[Site "Chess.com"]
[Date "2024.03.26"]
[Round "1"]
[White "GothamChess"]
[Black "ArchibaldCerveza29"]
[Result "1-0"]
[WhiteElo "2678"]
[BlackElo "2370"]
[TimeControl "180+1"]
[EndTime "14:06:41 PDT"]
[Termination "GothamChess won by checkmate"]

1. e4 {[%clk 0:02:51.6]} 1... e5 {[%clk 0:02:52.9]} 2. Nf3 {[%clk 0:02:37.6]}
2... Nf6 {[%clk 0:02:51.5]} 3. d3 {[%clk 0:02:36.7]} 3... Nc6 {[%clk 0:02:48.2]}
4. c3 {[%clk 0:02:34]} 4... Be7 {[%clk 0:02:39.8]} 5. Nbd2 {[%clk 0:02:30.7]}
5... O-O {[%clk 0:02:37.4]} 6. Be2 {[%clk 0:02:30.7]} 6... d5 {[%clk 0:02:35]}
7. Qc2 {[%clk 0:02:30.7]} 7... a5 {[%clk 0:02:27.8]} 8. a4 {[%clk 0:02:30.3]}
8... h6 {[%clk 0:02:23.1]} 9. h3 {[%clk 0:02:30.1]} 9... Re8 {[%clk 0:02:12.5]}
10. Nf1 {[%clk 0:02:29]} 10... Bf8 {[%clk 0:01:52.1]} 11. g4 {[%clk 0:02:25.6]}
11... dxe4 {[%clk 0:01:26.5]} 12. dxe4 {[%clk 0:02:25.7]} 12... Be6 {[%clk
0:01:20.4]} 13. g5 {[%clk 0:02:22.8]} 13... hxg5 {[%clk 0:01:14.6]} 14. Bxg5
{[%clk 0:02:22.9]} 14... Be7 {[%clk 0:00:58.2]} 15. Rg1 {[%clk 0:02:18.7]} 15...
Nh5 {[%clk 0:00:42.1]} 16. Rd1 {[%clk 0:02:05.1]} 16... Qc8 {[%clk 0:00:40.7]}
17. Ne3 {[%clk 0:01:51.5]} 17... Bxg5 {[%clk 0:00:36]} 18. Nxg5 {[%clk
0:01:47.2]} 18... Nf4 {[%clk 0:00:33.2]} 19. Nd5 {[%clk 0:01:34.8]} 19... Nxd5
{[%clk 0:00:19.8]} 20. exd5 {[%clk 0:01:22]} 20... Bf5 {[%clk 0:00:19.8]} 21.
Qd2 {[%clk 0:01:16.6]} 21... Ne7 {[%clk 0:00:19.1]} 22. h4 {[%clk 0:00:46.1]}
22... Ng6 {[%clk 0:00:18.9]} 23. h5 {[%clk 0:00:46.8]} 23... Nf4 {[%clk
0:00:19.2]} 24. h6 {[%clk 0:00:43.3]} 24... g6 {[%clk 0:00:19.5]} 25. Qe3 {[%clk
0:00:40]} 25... f6 {[%clk 0:00:17.3]} 26. h7+ {[%clk 0:00:37.3]} 26... Kg7
{[%clk 0:00:14.6]} 27. Ne4 {[%clk 0:00:35.3]} 27... Qd8 {[%clk 0:00:13.6]} 28.
Ng3 {[%clk 0:00:32.3]} 28... Kxh7 {[%clk 0:00:12.1]} 29. Nxf5 {[%clk 0:00:29.9]}
29... gxf5 {[%clk 0:00:12.6]} 30. Qg3 {[%clk 0:00:29]} 30... Kh6 {[%clk
0:00:08.4]} 31. Rh1+ {[%clk 0:00:27.5]} 31... Nh5 {[%clk 0:00:08.6]} 32. Rxh5#
{[%clk 0:00:27.8]} 1-0

[Event "Late-Titled-Tuesday-Blitz-March-26-2024"]
[Site "Chess.com"]
[Date "2024.03.26"]
[Round "1"]
[White "Sina_Movahed"]
[Black "Defenstrator"]
[Result "1-0"]
[WhiteElo "3069"]
[BlackElo "2524"]
[TimeControl "180+1"]
[EndTime "14:06:42 PDT"]
[Termination "Sina_Movahed won by resignation"]

1. e4 {[%clk 0:03:00.9]} 1... c5 {[%clk 0:02:59.4]} 2. Nf3 {[%clk 0:02:59.8]}
2... e6 {[%clk 0:02:54.9]} 3. d4 {[%clk 0:03:00.1]} 3... cxd4 {[%clk 0:02:55.5]}
4. Nxd4 {[%clk 0:03:01]} 4... Nf6 {[%clk 0:02:54.2]} 5. Nc3 {[%clk 0:03:00.3]}
5... Qb6 {[%clk 0:02:54.5]} 6. Be2 {[%clk 0:02:35.2]} 6... Bb4 {[%clk
0:02:41.6]} 7. e5 {[%clk 0:02:18.2]} 7... Nd5 {[%clk 0:02:28.5]} 8. Qd3 {[%clk
0:02:15.5]} 8... Nc6 {[%clk 0:02:17.5]} 9. Nxc6 {[%clk 0:02:09.7]} 9... bxc6
{[%clk 0:02:12.4]} 10. O-O {[%clk 0:02:09.9]} 10... Nxc3 {[%clk 0:01:51.2]} 11.
bxc3 {[%clk 0:02:08.6]} 11... Be7 {[%clk 0:01:32.5]} 12. Qg3 {[%clk 0:02:03]}
12... g6 {[%clk 0:01:29]} 13. Bh6 {[%clk 0:01:56.7]} 13... Ba6 {[%clk 0:01:24]}
14. Rab1 {[%clk 0:01:47.8]} 14... Qa5 {[%clk 0:01:22.5]} 15. c4 {[%clk
0:01:39.5]} 15... Qa4 {[%clk 0:01:00.1]} 16. Rb3 {[%clk 0:01:03]} 16... Bxc4
{[%clk 0:00:54.4]} 17. Bxc4 {[%clk 0:01:03.9]} 17... Qxc4 {[%clk 0:00:54.6]} 18.
Rfb1 {[%clk 0:01:04.5]} 18... Rd8 {[%clk 0:00:41.4]} 19. Bg7 {[%clk 0:00:43.6]}
19... Rg8 {[%clk 0:00:40.7]} 20. Bf6 {[%clk 0:00:44.2]} 20... Bxf6 {[%clk
0:00:25.5]} 21. exf6 {[%clk 0:00:45.1]} 21... d6 {[%clk 0:00:21.2]} 22. Rb8
{[%clk 0:00:36.5]} 22... Qd4 {[%clk 0:00:10.3]} 23. h3 {[%clk 0:00:30.9]} 23...
Qxf6 {[%clk 0:00:07.9]} 24. Qxd6 {[%clk 0:00:30.6]} 24... Qe7 {[%clk 0:00:03.4]}
25. Rxd8+ {[%clk 0:00:29.4]} 25... Qxd8 {[%clk 0:00:03.5]} 26. Rb8 {[%clk
0:00:30.3]} 1-0